[Event "Championnat du monde jeunes U12F"]
[Date "2024.11.19"]
[White "Oksanen, Maria"]
[Black "Ordonez Alarcon, Daniela"]
[WhiteElo "1725"]
[BlackElo "1606"]
[Round "5.26"]
[Result "1-0"]
[TimeControl "5400+30"]

1. e4 {[%clk 1:30:58]} 1... e5 {[%clk 1:30:51]} 2. Nf3 {[%clk 1:31:23]} 2... Nc6
{[%clk 1:31:16]} 3. Bb5 {[%clk 1:31:45]} 3... a6 {[%clk 1:31:22]} 4. Ba4 {[%clk
1:32:07]} 4... Nf6 {[%clk 1:31:46]} 5. O-O {[%clk 1:32:29]} 5... b5 {[%clk
1:31:32]} 6. Bb3 {[%clk 1:32:50]} 6... Nxe4 {[%clk 1:30:27]} 7. Re1 {[%clk
1:33:10]} 7... d5 {[%clk 1:30:47]} 8. Nc3 {[%clk 1:33:34]} 8... Nxc3 {[%clk
1:28:25]} 9. dxc3 {[%clk 1:33:57]} 9... Be6 {[%clk 1:28:10]} 10. a4 {[%clk
1:33:49]} 10... Rb8 {[%clk 1:21:17]} 11. axb5 {[%clk 1:31:32]} 11... axb5 {[%clk
1:21:22]} 12. Bg5 {[%clk 1:31:04]} 12... Qd6 {[%clk 1:14:42]} 13. Ra6 {[%clk
1:25:51]} 13... f6 {[%clk 1:10:35]} 14. Bf4 {[%clk 1:25:48]} 14... Qd7 {[%clk
1:05:19]} 15. Bxe5 {[%clk 1:17:27]} 15... Be7 {[%clk 0:46:00]} 16. Bxc7 {[%clk
1:16:47]} 16... Qxc7 {[%clk 0:44:17]} 17. Rxe6 {[%clk 1:17:10]} 17... Nd8 {[%clk
0:44:02]} 18. Re1 {[%clk 1:16:27]} 18... O-O {[%clk 0:43:47]} 19. Qxd5+ {[%clk
1:14:33]} 19... Kh8 {[%clk 0:44:07]} 20. Nd4 {[%clk 1:14:37]} 20... Bc5 {[%clk
0:42:35]} 21. Nc6 {[%clk 1:09:17]} 21... Rc8 {[%clk 0:42:45]} 22. Qxc5 {[%clk
1:09:01]} 22... Nxc6 {[%clk 0:43:07]} 23. Qxb5 {[%clk 1:09:03]} 23... Ne5 {[%clk
0:39:45]} 24. Qb6 {[%clk 1:07:54]} 24... Qd7 {[%clk 0:39:07]} 25. Be6 {[%clk
1:07:13]} 25... Qd2 {[%clk 0:39:30]} 26. Qe3 {[%clk 1:07:38]} 26... Qxe3 {[%clk
0:39:02]} 27. fxe3 {[%clk 1:08:02]} 27... Rcd8 {[%clk 0:39:11]} 28. Rea1 {[%clk
1:07:05]} 28... g6 {[%clk 0:38:19]} 29. h3 {[%clk 1:04:30]} 29... Rfe8 {[%clk
0:37:45]} 30. e4 {[%clk 0:58:47]} 30... Kg7 {[%clk 0:36:04]} 31. Bd5 {[%clk
0:58:15]} 31... f5 {[%clk 0:34:35]} 32. Re6 {[%clk 0:57:36]} 32... fxe4 {[%clk
0:32:01]} 33. Rxe8 {[%clk 0:57:10]} 33... Rxe8 {[%clk 0:32:25]} 34. Bxe4 {[%clk
0:57:24]} 34... Nc4 {[%clk 0:32:28]} 35. Bc6 {[%clk 0:55:33]} 35... Rc8 {[%clk
0:32:52]} 36. Ra7+ {[%clk 0:55:38]} 36... Kh6 {[%clk 0:32:44]} 37. Bd7 {[%clk
0:55:24]} 37... Rd8 {[%clk 0:32:00]} 38. b4 {[%clk 0:53:55]} 38... Nb6 {[%clk
0:31:47]} 39. Be6 {[%clk 0:52:43]} 39... Rd6 {[%clk 0:29:58]} 40. Bg8 {[%clk
0:52:20]} 40... Nd7 {[%clk 0:28:53]} 41. c4 {[%clk 0:50:52]} 41... Nf6 {[%clk
0:26:04]} 42. Bd5 {[%clk 0:50:38]} 42... Nxd5 {[%clk 0:26:02]} 43. cxd5 {[%clk
0:51:01]} 43... Rxd5 {[%clk 0:26:24]} 44. c4 {[%clk 0:50:56]} 44... Rd4 {[%clk
0:26:27]} 45. Rc7 {[%clk 0:51:16]} 45... Kg5 {[%clk 0:26:40]} 46. b5 {[%clk
0:51:15]} 46... Rd1+ {[%clk 0:26:59]} 47. Kf2 {[%clk 0:51:38]} 47... Rb1 {[%clk
0:27:04]} 48. Ke3 {[%clk 0:51:23]} 48... Kf5 {[%clk 0:26:03]} 49. Kd4 {[%clk
0:51:42]} 49... h5 {[%clk 0:25:54]} 50. Kc5 {[%clk 0:51:47]} 50... Rb2 {[%clk
0:24:22]} 51. b6 {[%clk 0:50:51]} 51... Rxg2 {[%clk 0:23:52]} 52. b7 {[%clk
0:51:16]} 52... Rb2 {[%clk 0:24:19]} 53. Kc6 {[%clk 0:51:34]} 53... Kg5 {[%clk
0:24:09]} 54. Rc8 {[%clk 0:51:55]} 54... Kh4 {[%clk 0:24:33]} 55. b8=Q {[%clk
0:52:12]} 55... Rxb8 {[%clk 0:24:58]} 56. Rxb8 {[%clk 0:52:34]} 56... Kxh3
{[%clk 0:25:23]} 57. Rg8 {[%clk 0:52:56]} 57... h4 {[%clk 0:24:54]} 58. Rxg6
{[%clk 0:53:18]} 58... Kh2 {[%clk 0:25:19]} 59. c5 {[%clk 0:53:41]} 59... h3
{[%clk 0:25:43]} 60. Kd6 {[%clk 0:53:56]} 60... Kh1 {[%clk 0:26:10]} 61. c6
{[%clk 0:54:17]} 61... h2 {[%clk 0:26:33]} 62. Rh6 {[%clk 0:54:34]} 62... Kg2
{[%clk 0:26:53]} 63. c7 {[%clk 0:54:55]} 63... h1=Q {[%clk 0:27:10]} 64. Rxh1
{[%clk 0:55:14]} 64... Kxh1 {[%clk 0:27:37]} 65. c8=Q {[%clk 0:55:36]} 65... Kg2
{[%clk 0:27:59]} 66. Qf5 {[%clk 0:56:01]} 66... Kg3 {[%clk 0:27:59]} 67. Ke5
{[%clk 0:56:20]} 67... Kg2 {[%clk 0:27:38]} 68. Qf4 {[%clk 0:56:36]} 68... Kg1
{[%clk 0:27:33]} 69. Ke4 {[%clk 0:56:58]} 69... Kh1 {[%clk 0:27:47]} 70. Qg4
{[%clk 0:57:23]} 70... Kh2 {[%clk 0:28:04]} 71. Kf3 {[%clk 0:57:48]} 71... Kh1
{[%clk 0:28:27]} 72. Qg2# 1-0

[Variant "Standard"]
[Site "Europe Echecs"]

[Event "Championnat du monde jeunes U12F"]
[Date "2024.11.19"]
[White "Bohatyrova, Mariia"]
[Black "Mrad, Anahid"]
[WhiteElo "1722"]
[BlackElo "1558"]
[Round "5.27"]
[Result "1-0"]
[TimeControl "5400+30"]

1. e4 {[%clk 1:30:57]} 1... e5 {[%clk 1:30:56]} 2. Nf3 {[%clk 1:31:23]} 2... Nc6
{[%clk 1:31:20]} 3. Bb5 {[%clk 1:31:46]} 3... a6 {[%clk 1:31:41]} 4. Ba4 {[%clk
1:32:11]} 4... Nf6 {[%clk 1:31:58]} 5. Qe2 {[%clk 1:32:24]} 5... b5 {[%clk
1:30:48]} 6. Bb3 {[%clk 1:32:49]} 6... Bc5 {[%clk 1:30:42]} 7. O-O {[%clk
1:30:25]} 7... O-O {[%clk 1:29:29]} 8. c3 {[%clk 1:30:28]} 8... d6 {[%clk
1:25:21]} 9. Rd1 {[%clk 1:28:56]} 9... Re8 {[%clk 1:19:44]} 10. d3 {[%clk
1:28:16]} 10... d5 {[%clk 1:16:33]} 11. Nbd2 {[%clk 1:26:29]} 11... d4 {[%clk
1:12:31]} 12. c4 {[%clk 1:18:56]} 12... Nh5 {[%clk 1:09:16]} 13. Nf1 {[%clk
1:16:39]} 13... Nf4 {[%clk 1:07:22]} 14. Bxf4 {[%clk 1:15:40]} 14... exf4 {[%clk
1:07:35]} 15. cxb5 {[%clk 1:14:57]} 15... axb5 {[%clk 1:07:53]} 16. Qc2 {[%clk
1:13:08]} 16... Qd6 {[%clk 1:03:29]} 17. Rac1 {[%clk 1:10:49]} 17... Ne5 {[%clk
1:01:26]} 18. Qxc5 {[%clk 1:09:37]} 18... Nxf3+ {[%clk 1:01:47]} 19. gxf3 {[%clk
1:10:02]} 19... Qg6+ {[%clk 1:01:30]} 20. Ng3 {[%clk 1:04:30]} 20... fxg3 {[%clk
1:01:20]} 21. fxg3 {[%clk 1:04:46]} 21... Qf6 {[%clk 1:01:15]} 22. Kg2 {[%clk
0:56:22]} 22... Re7 {[%clk 0:26:49]} 23. Qd5 {[%clk 0:52:42]} 23... Re8 {[%clk
0:25:41]} 24. Qxb5 {[%clk 0:39:36]} 24... Re5 {[%clk 0:20:10]} 25. Qc6 {[%clk
0:29:47]} 25... Ra7 {[%clk 0:17:42]} 26. Qxf6 {[%clk 0:25:31]} 26... gxf6 {[%clk
0:17:43]} 27. Rc6 {[%clk 0:25:44]} 27... Kg7 {[%clk 0:17:37]} 28. Rdc1 {[%clk
0:24:38]} 28... Re7 {[%clk 0:17:50]} 29. R1c4 {[%clk 0:20:10]} 29... Rd7 {[%clk
0:17:30]} 30. Ra4 {[%clk 0:19:11]} 30... Rxa4 {[%clk 0:16:15]} 31. Bxa4 {[%clk
0:19:35]} 31... Bb7 {[%clk 0:14:50]} 32. Rc4 {[%clk 0:19:32]} 32... Rd8 {[%clk
0:14:14]} 33. Rxc7 {[%clk 0:18:19]} 33... Ba6 {[%clk 0:14:32]} 34. Rd7 {[%clk
0:18:18]} 34... Rxd7 {[%clk 0:14:19]} 35. Bxd7 {[%clk 0:18:43]} 35... Bxd3
{[%clk 0:14:40]} 36. Kf2 {[%clk 0:18:44]} 36... Kf8 {[%clk 0:14:05]} 37. a4
{[%clk 0:18:29]} 37... Ke7 {[%clk 0:14:09]} 38. Bb5 {[%clk 0:18:45]} 38... Bc2
{[%clk 0:14:00]} 39. Ke2 {[%clk 0:18:52]} 39... Kd6 {[%clk 0:13:59]} 40. b4
{[%clk 0:18:29]} 40... f5 {[%clk 0:13:01]} 41. exf5 {[%clk 0:18:30]} 41... Bxf5
{[%clk 0:13:14]} 42. Bd3 {[%clk 0:18:48]} 42... Bd7 {[%clk 0:12:39]} 43. a5
{[%clk 0:18:55]} 43... h6 {[%clk 0:12:38]} 44. a6 {[%clk 0:19:06]} 44... Bc8
{[%clk 0:12:37]} 45. a7 {[%clk 0:19:15]} 45... Bb7 {[%clk 0:13:03]} 46. Be4
{[%clk 0:19:34]} 46... Kc7 {[%clk 0:13:21]} 47. Bxb7 {[%clk 0:19:07]} 47... Kxb7
{[%clk 0:13:37]} 48. Kd3 {[%clk 0:19:33]} 48... Kxa7 {[%clk 0:13:41]} 49. Kxd4
{[%clk 0:19:56]} 49... Kb6 {[%clk 0:13:57]} 50. Kc4 {[%clk 0:20:14]} 50... Kc6
{[%clk 0:13:44]} 51. b5+ {[%clk 0:20:29]} 51... Kb6 {[%clk 0:13:57]} 52. g4
{[%clk 0:20:39]} 52... f6 {[%clk 0:14:12]} 53. h4 {[%clk 0:20:42]} 53... Kc7
{[%clk 0:14:15]} 54. Kc5 {[%clk 0:21:05]} 54... Kb7 {[%clk 0:14:25]} 55. b6
{[%clk 0:21:27]} 55... Kc8 {[%clk 0:14:46]} 56. Kc6 {[%clk 0:21:52]} 56... Kb8
{[%clk 0:14:59]} 57. b7 {[%clk 0:22:16]} 57... Ka7 {[%clk 0:14:47]} 58. Kc7
{[%clk 0:22:38]} 58... Ka6 {[%clk 0:15:07]} 59. b8=Q {[%clk 0:22:57]} 1-0

[Variant "Standard"]
[Site "Europe Echecs"]

[Event "Championnat du monde jeunes U12F"]
[Date "2024.11.19"]
[White "Tursunalieva, Nurelina"]
[Black "Li, Yeeshuen"]
[WhiteElo "1701"]
[BlackElo "1546"]
[Round "5.28"]
[Result "1-0"]
[TimeControl "5400+30"]

1. e4 {[%clk 1:30:58]} 1... e5 {[%clk 1:30:52]} 2. Nf3 {[%clk 1:31:24]} 2... Nc6
{[%clk 1:31:16]} 3. d4 {[%clk 1:31:48]} 3... exd4 {[%clk 1:31:37]} 4. Nxd4
{[%clk 1:32:15]} 4... Bc5 {[%clk 1:31:56]} 5. Nb3 {[%clk 1:32:40]} 5... Bb6
{[%clk 1:32:17]} 6. Bd3 {[%clk 1:32:19]} 6... Nf6 {[%clk 1:31:18]} 7. Nc3 {[%clk
1:30:47]} 7... d6 {[%clk 1:29:53]} 8. h3 {[%clk 1:29:18]} 8... h6 {[%clk
1:28:07]} 9. Na4 {[%clk 1:26:12]} 9... Qe7 {[%clk 1:25:47]} 10. Nxb6 {[%clk
1:18:15]} 10... axb6 {[%clk 1:26:04]} 11. O-O {[%clk 1:18:05]} 11... Bd7 {[%clk
1:23:35]} 12. f4 {[%clk 1:16:26]} 12... O-O {[%clk 1:18:57]} 13. Qf3 {[%clk
1:12:45]} 13... Rfe8 {[%clk 1:12:52]} 14. Nd2 {[%clk 1:05:16]} 14... Nb4 {[%clk
1:08:26]} 15. a3 {[%clk 1:03:06]} 15... Bc6 {[%clk 1:02:32]} 16. Re1 {[%clk
0:59:25]} 16... Na6 {[%clk 0:59:51]} 17. b4 {[%clk 0:56:51]} 17... Nxb4 {[%clk
0:59:31]} 18. Bb2 {[%clk 0:57:11]} 18... Nxd3 {[%clk 0:58:31]} 19. cxd3 {[%clk
0:57:30]} 19... Nd7 {[%clk 0:52:00]} 20. d4 {[%clk 0:53:31]} 20... f6 {[%clk
0:38:59]} 21. d5 {[%clk 0:45:42]} 21... Ba4 {[%clk 0:34:34]} 22. Nf1 {[%clk
0:23:38]} 22... Nc5 {[%clk 0:31:08]} 23. Ng3 {[%clk 0:20:08]} 23... Bc2 {[%clk
0:28:00]} 24. e5 {[%clk 0:14:56]} 24... fxe5 {[%clk 0:25:32]} 25. fxe5 {[%clk
0:12:21]} 25... Nd3 {[%clk 0:20:13]} 26. Re2 {[%clk 0:03:02]} 26... Nxb2 {[%clk
0:18:00]} 27. exd6 {[%clk 0:02:03]} 27... Qxd6 {[%clk 0:17:31]} 28. Rxc2 {[%clk
0:02:19]} 28... Na4 {[%clk 0:15:09]} 29. Nf5 {[%clk 0:01:50]} 29... Qf6 {[%clk
0:14:34]} 30. Rf1 {[%clk 0:01:44]} 30... Nc5 {[%clk 0:13:40]} 31. Rc4 {[%clk
0:01:39]} 31... Ra4 {[%clk 0:11:25]} 32. Rxa4 {[%clk 0:01:47]} 32... Nxa4 {[%clk
0:11:47]} 33. d6 {[%clk 0:01:51]} 33... Qe6 {[%clk 0:07:26]} 34. Qg4 {[%clk
0:01:24]} 34... g6 {[%clk 0:06:08]} 35. Ne7+ {[%clk 0:01:25]} 35... Rxe7 {[%clk
0:06:14]} 36. dxe7 {[%clk 0:01:46]} 36... Qe3+ {[%clk 0:04:29]} 37. Kh1 {[%clk
0:01:59]} 37... Nc5 {[%clk 0:04:24]} 38. Qxg6+ {[%clk 0:02:17]} 38... Kh8 {[%clk
0:04:44]} 39. Rf8# {[%clk 0:02:41]} 1-0

[Variant "Standard"]
[Site "Europe Echecs"]

[Event "Championnat du monde jeunes U12F"]
[Date "2024.11.19"]
[White "Budhram, Kaylee"]
[Black "Gailevska, Milana"]
[WhiteElo "1614"]
[BlackElo "1698"]
[Round "5.29"]
[Result "1/2-1/2"]
[TimeControl "5400+30"]

1. d4 {[%clk 1:30:59]} 1... d5 {[%clk 1:30:54]} 2. c4 {[%clk 1:31:24]} 2... e6
{[%clk 1:31:20]} 3. Nf3 {[%clk 1:31:50]} 3... Nf6 {[%clk 1:31:39]} 4. g3 {[%clk
1:32:15]} 4... Bb4+ {[%clk 1:31:53]} 5. Bd2 {[%clk 1:32:37]} 5... Be7 {[%clk
1:32:05]} 6. Bg2 {[%clk 1:33:04]} 6... O-O {[%clk 1:32:13]} 7. O-O {[%clk
1:33:29]} 7... c6 {[%clk 1:32:35]} 8. Qc2 {[%clk 1:33:28]} 8... Nbd7 {[%clk
1:32:44]} 9. Rd1 {[%clk 1:33:03]} 9... b6 {[%clk 1:32:47]} 10. Nc3 {[%clk
1:29:33]} 10... dxc4 {[%clk 1:27:24]} 11. e4 {[%clk 1:28:53]} 11... Bb7 {[%clk
1:24:37]} 12. Bf4 {[%clk 1:23:26]} 12... b5 {[%clk 1:15:58]} 13. a4 {[%clk
1:15:22]} 13... b4 {[%clk 1:10:02]} 14. Ne2 {[%clk 1:13:55]} 14... Qb6 {[%clk
1:07:37]} 15. a5 {[%clk 1:12:48]} 15... Qb5 {[%clk 1:05:57]} 16. Rdc1 {[%clk
1:06:12]} 16... Rac8 {[%clk 1:03:56]} 17. Bf1 {[%clk 0:58:53]} 17... Ba6 {[%clk
0:52:32]} 18. e5 {[%clk 0:49:32]} 18... Nd5 {[%clk 0:50:29]} 19. Nd2 {[%clk
0:49:36]} 19... b3 {[%clk 0:44:57]} 20. Qxc4 {[%clk 0:47:33]} 20... Qb7 {[%clk
0:41:30]} 21. Qxb3 {[%clk 0:46:16]} 21... Qxb3 {[%clk 0:41:43]} 22. Nxb3 Rb8
{[%clk 0:41:53]} 23. Nd2 {[%clk 0:34:22]} 23... Rxb2 {[%clk 0:40:44]} 24. Nc4
{[%clk 0:34:44]} 24... Rb4 {[%clk 0:39:33]} 25. Ne3 {[%clk 0:24:39]} 25... Nxf4
{[%clk 0:36:02]} 26. gxf4 {[%clk 0:22:26]} 26... Bxe2 {[%clk 0:35:07]} 27. Bxe2
{[%clk 0:22:50]} 27... Rxd4 {[%clk 0:34:38]} 28. Rxc6 {[%clk 0:23:07]} 28...
Rxf4 {[%clk 0:28:36]} 29. Rc7 {[%clk 0:16:50]} 29... Rd8 {[%clk 0:23:51]} 30.
Rd1 {[%clk 0:11:23]} 30... Bh4 {[%clk 0:15:57]} 31. Rdxd7 {[%clk 0:11:24]} 31...
Rxd7 {[%clk 0:14:11]} 32. Rxd7 {[%clk 0:11:39]} 32... Bxf2+ {[%clk 0:12:32]} 33.
Kg2 {[%clk 0:12:03]} 33... g6 {[%clk 0:12:12]} 34. Ng4 {[%clk 0:10:45]} 34...
Be1 {[%clk 0:07:46]} 35. Rxa7 {[%clk 0:10:40]} 35... h5 {[%clk 0:06:56]} 36.
Nf6+ {[%clk 0:08:33]} 36... Kg7 {[%clk 0:07:15]} 37. Bb5 {[%clk 0:08:34]} 37...
Rf2+ {[%clk 0:06:35]} 38. Kh1 {[%clk 0:07:55]} 38... Bc3 {[%clk 0:06:06]} 39.
Be8 {[%clk 0:06:34]} 39... Ra2 {[%clk 0:05:08]} 40. Bxf7 {[%clk 0:02:50]} 40...
Ra1+ {[%clk 0:04:44]} 41. Kg2 {[%clk 0:03:14]} 41... Bd4 {[%clk 0:03:54]} 42.
Rd7 {[%clk 0:02:20]} 42... Bxe5 {[%clk 0:03:34]} 43. Ne8+ {[%clk 0:01:40]} 43...
Kh6 {[%clk 0:02:52]} 44. Bxe6 {[%clk 0:01:15]} 44... Rxa5 {[%clk 0:03:00]} 45.
Nc7 {[%clk 0:00:35]} 45... Rc5 {[%clk 0:02:43]} 46. Nd5 {[%clk 0:00:42]} 46...
Rc2+ {[%clk 0:03:01]} 47. Kf3 {[%clk 0:00:57]} 47... Rxh2 {[%clk 0:03:01]} 48.
Re7 {[%clk 0:01:02]} 48... Kg5 {[%clk 0:02:52]} 49. Bf7 {[%clk 0:01:07]} 49...
Bd4 {[%clk 0:02:41]} 50. Re2 {[%clk 0:00:45]} 50... Rh3+ {[%clk 0:02:02]} 51.
Kg2 {[%clk 0:01:00]} 51... Rh4 {[%clk 0:01:58]} 52. Re6 {[%clk 0:00:59]} 52...
Rg4+ {[%clk 0:02:03]} 53. Kf3 {[%clk 0:01:22]} 53... Kh4 {[%clk 0:00:38]} 54.
Bxg6 {[%clk 0:01:07]} 54... Rg3+ {[%clk 0:00:52]} 55. Ke2 {[%clk 0:01:30]} 55...
Rg2+ {[%clk 0:00:35]} 56. Kd3 {[%clk 0:01:53]} 56... Bb2 {[%clk 0:00:47]} 57.
Ke3 {[%clk 0:00:36]} 57... Rg1 {[%clk 0:00:49]} 58. Re4+ {[%clk 0:00:54]}
1/2-1/2

[Variant "Standard"]
[Site "Europe Echecs"]

[Event "Championnat du monde jeunes U12F"]
[Date "2024.11.19"]
[White "Sevastsyanchuk, Anastasiya"]
[Black "Alcantara, Levanah"]
[WhiteElo "1595"]
[BlackElo "1753"]
[Round "5.30"]
[Result "1-0"]
[TimeControl "5400+30"]

1. e4 {[%clk 1:30:58]} 1... e6 {[%clk 1:30:54]} 2. d4 {[%clk 1:31:17]} 2... d5
{[%clk 1:31:22]} 3. Nd2 {[%clk 1:31:37]} 3... Nc6 {[%clk 1:31:38]} 4. Ngf3
{[%clk 1:31:48]} 4... Nf6 {[%clk 1:31:57]} 5. e5 {[%clk 1:31:43]} 5... Nd7
{[%clk 1:32:11]} 6. Bb5 {[%clk 1:28:48]} 6... a6 {[%clk 1:31:43]} 7. Ba4 {[%clk
1:26:27]} 7... b5 {[%clk 1:30:50]} 8. Bb3 {[%clk 1:26:49]} 8... f6 {[%clk
1:29:03]} 9. exf6 {[%clk 1:27:05]} 9... Qxf6 {[%clk 1:28:23]} 10. c3 {[%clk
1:27:13]} 10... Bd6 {[%clk 1:27:46]} 11. Nf1 {[%clk 1:25:03]} 11... O-O {[%clk
1:26:29]} 12. Bg5 {[%clk 1:25:18]} 12... Qf7 {[%clk 1:26:12]} 13. Ne3 {[%clk
1:22:10]} 13... Bb7 {[%clk 1:24:48]} 14. O-O {[%clk 1:21:28]} 14... Rae8 {[%clk
1:23:49]} 15. Bh4 {[%clk 1:20:50]} 15... Nf6 {[%clk 1:18:01]} 16. Ng5 {[%clk
1:08:24]} 16... Qd7 {[%clk 1:16:38]} 17. Bc2 {[%clk 1:08:09]} 17... Ne7 {[%clk
1:02:17]} 18. Ng4 {[%clk 0:59:04]} 18... Nf5 {[%clk 0:57:05]} 19. Bg3 {[%clk
0:56:44]} 19... Nxg3 {[%clk 0:49:21]} 20. fxg3 {[%clk 0:36:39]} 20... Ne4 {[%clk
0:44:01]} 21. Nxe4 {[%clk 0:33:00]} 21... dxe4 {[%clk 0:43:16]} 22. Qe2 {[%clk
0:31:59]} 22... Rxf1+ {[%clk 0:37:04]} 23. Rxf1 {[%clk 0:32:22]} 23... e5 {[%clk
0:36:58]} 24. Bb3+ {[%clk 0:28:46]} 24... Kh8 {[%clk 0:36:50]} 25. Rf7 {[%clk
0:28:22]} 25... Qc6 {[%clk 0:34:45]} 26. Nf6 {[%clk 0:28:07]} 26... Be7 {[%clk
0:25:38]} 27. Nxe8 {[%clk 0:24:03]} 27... Qxe8 {[%clk 0:24:47]} 28. Qh5 {[%clk
0:23:58]} 28... Bf6 {[%clk 0:22:02]} 29. Rxg7 {[%clk 0:23:54]} 1-0

[Variant "Standard"]
[Site "Europe Echecs"]

[Event "Championnat du monde jeunes U12F"]
[Date "2024.11.19"]
[White "Radenkovic, Lena"]
[Black "Kovalskyy, Alicia"]
[WhiteElo "1675"]
[BlackElo "1871"]
[Round "5.31"]
[Result "1/2-1/2"]
[TimeControl "5400+30"]

1. Nf3 {[%clk 1:30:25]} 1... d5 {[%clk 1:30:54]} 2. g3 {[%clk 1:29:41]} 2... Bg4
{[%clk 1:30:43]} 3. Bg2 {[%clk 1:28:42]} 3... Nd7 {[%clk 1:30:47]} 4. O-O {[%clk
1:26:30]} 4... e6 {[%clk 1:30:44]} 5. d3 {[%clk 1:22:08]} 5... Bd6 {[%clk
1:30:34]} 6. Nbd2 {[%clk 1:20:30]} 6... Ne7 {[%clk 1:30:35]} 7. Qe1 {[%clk
1:15:38]} 7... O-O {[%clk 1:26:26]} 8. e4 {[%clk 1:12:04]} 8... c6 {[%clk
1:23:36]} 9. b3 {[%clk 1:03:44]} 9... f6 {[%clk 1:11:03]} 10. h3 {[%clk
0:58:57]} 10... Bxf3 {[%clk 1:05:29]} 11. Bxf3 {[%clk 0:58:53]} 11... Be5 {[%clk
0:59:51]} 12. Rb1 {[%clk 0:58:27]} 12... f5 {[%clk 0:52:52]} 13. Bb2 {[%clk
0:55:52]} 13... dxe4 {[%clk 0:47:05]} 14. dxe4 {[%clk 0:53:33]} 14... Bxb2
{[%clk 0:40:49]} 15. Rxb2 {[%clk 0:53:39]} 15... Ne5 {[%clk 0:36:25]} 16. exf5
{[%clk 0:44:41]} 16... Qd4 {[%clk 0:23:09]} 17. Rb1 {[%clk 0:42:17]} 17... Nxf3+
{[%clk 0:21:10]} 18. Nxf3 {[%clk 0:42:19]} 18... Qf6 {[%clk 0:20:10]} 19. Kh2
{[%clk 0:33:54]} 19... exf5 {[%clk 0:19:13]} 20. Ne5 {[%clk 0:30:37]} 20... f4
{[%clk 0:15:23]} 21. g4 {[%clk 0:20:06]} 21... Rad8 {[%clk 0:14:18]} 22. Nd3
{[%clk 0:16:58]} 22... Ng6 {[%clk 0:12:38]} 23. Qb4 {[%clk 0:15:32]} 23... b6
{[%clk 0:10:58]} 24. Qc4+ {[%clk 0:14:51]} 24... Kh8 {[%clk 0:10:59]} 25. Rbe1
{[%clk 0:13:37]} 25... Rd4 {[%clk 0:10:39]} 26. Qe6 {[%clk 0:12:42]} 26... Rd6
{[%clk 0:08:23]} 27. Qc4 {[%clk 0:11:16]} 27... Rd4 {[%clk 0:08:05]} 28. Qa6
{[%clk 0:10:20]} 28... Qf7 {[%clk 0:07:28]} 1/2-1/2

[Variant "Standard"]
[Site "Europe Echecs"]

[Event "Championnat du monde jeunes U12F"]
[Date "2024.11.19"]
[White "Sunea, Sara Maria"]
[Black "Dzafic, Merjem"]
[WhiteElo "1823"]
[BlackElo "1568"]
[Round "5.32"]
[Result "1-0"]
[TimeControl "5400+30"]

1. e4 {[%clk 1:30:54]} 1... c6 {[%clk 1:30:50]} 2. Nf3 {[%clk 1:31:14]} 2... d5
{[%clk 1:31:08]} 3. exd5 {[%clk 1:31:38]} 3... cxd5 {[%clk 1:31:17]} 4. Ne5
{[%clk 1:31:49]} 4... Bf5 {[%clk 1:30:28]} 5. d4 {[%clk 1:31:37]} 5... Qb6
{[%clk 1:28:48]} 6. Nc3 {[%clk 1:25:53]} 6... e6 {[%clk 1:27:45]} 7. g4 {[%clk
1:24:22]} 7... Bg6 {[%clk 1:27:18]} 8. h4 {[%clk 1:24:21]} 8... h6 {[%clk
1:24:47]} 9. Nxg6 {[%clk 1:24:11]} 9... fxg6 {[%clk 1:24:03]} 10. Bd3 {[%clk
1:23:36]} 10... Ne7 {[%clk 1:22:20]} 11. Ne2 {[%clk 1:13:17]} 11... Nd7 {[%clk
1:02:43]} 12. f4 {[%clk 1:02:03]} 12... Rc8 {[%clk 0:31:45]} 13. Ng3 {[%clk
0:55:09]} 13... Qc7 {[%clk 0:26:51]} 14. Qe2 {[%clk 0:51:48]} 14... Qb6 {[%clk
0:23:09]} 15. c3 {[%clk 0:51:19]} 15... Qd6 {[%clk 0:20:59]} 16. Kf2 {[%clk
0:47:47]} 16... Nb6 {[%clk 0:18:46]} 17. Re1 {[%clk 0:45:02]} 17... Kf7 {[%clk
0:17:10]} 18. Kg2 {[%clk 0:42:03]} 18... Nc6 {[%clk 0:15:36]} 19. Be3 {[%clk
0:32:01]} 19... Be7 {[%clk 0:14:59]} 20. Rh1 {[%clk 0:30:45]} 20... Na5 {[%clk
0:12:36]} 21. Qc2 {[%clk 0:24:49]} 21... Nac4 {[%clk 0:08:07]} 22. Bxg6+ {[%clk
0:22:58]} 22... Kf8 {[%clk 0:08:15]} 23. Bg1 {[%clk 0:20:44]} 23... Bf6 {[%clk
0:05:48]} 24. Rf1 {[%clk 0:18:16]} 24... Bd8 {[%clk 0:04:37]} 25. Qe2 {[%clk
0:16:05]} 25... Bc7 {[%clk 0:03:59]} 26. h5 {[%clk 0:14:27]} 26... Ke7 {[%clk
0:04:03]} 27. Nf5+ {[%clk 0:14:49]} 27... Kd7 {[%clk 0:03:39]} 28. Nxd6 {[%clk
0:15:12]} 28... Bxd6 {[%clk 0:03:58]} 29. Bh2 {[%clk 0:14:28]} 29... Rhf8 {[%clk
0:02:23]} 30. f5 {[%clk 0:14:04]} 30... exf5 {[%clk 0:01:55]} 31. Bxf5+ {[%clk
0:14:23]} 1-0

[Variant "Standard"]
[Site "Europe Echecs"]

[Event "Championnat du monde jeunes U12F"]
[Date "2024.11.19"]
[White "Potikha, Shelley"]
[Black "Xikmatkhonova, Mokhinur"]
[WhiteElo "1561"]
[BlackElo "1726"]
[Round "5.33"]
[Result "0-1"]
[TimeControl "5400+30"]

1. e4 {[%clk 1:30:53]} 1... c5 {[%clk 1:30:53]} 2. Nf3 {[%clk 1:31:18]} 2... e6
{[%clk 1:31:19]} 3. d4 {[%clk 1:31:43]} 3... cxd4 {[%clk 1:31:35]} 4. Nxd4
{[%clk 1:32:07]} 4... a6 {[%clk 1:32:01]} 5. Nc3 {[%clk 1:32:25]} 5... Qc7
{[%clk 1:32:21]} 6. a3 {[%clk 1:32:43]} 6... Nf6 {[%clk 1:32:29]} 7. f4 {[%clk
1:33:02]} 7... d6 {[%clk 1:32:46]} 8. Be3 {[%clk 1:33:22]} 8... b6 {[%clk
1:33:00]} 9. Be2 {[%clk 1:24:12]} 9... Bb7 {[%clk 1:30:59]} 10. Bf3 {[%clk
1:24:11]} 10... Nbd7 {[%clk 1:30:52]} 11. Qe2 {[%clk 1:16:08]} 11... Be7 {[%clk
1:26:38]} 12. O-O-O {[%clk 1:13:09]} 12... g6 {[%clk 1:21:58]} 13. g4 {[%clk
1:09:59]} 13... Nc5 {[%clk 1:18:13]} 14. Qg2 {[%clk 0:50:23]} 14... e5 {[%clk
1:12:31]} 15. Nde2 {[%clk 0:46:13]} 15... Rc8 {[%clk 0:48:33]} 16. Ng3 {[%clk
0:36:02]} 16... b5 {[%clk 0:36:32]} 17. g5 {[%clk 0:31:25]} 17... Nfd7 {[%clk
0:32:54]} 18. f5 {[%clk 0:13:41]} 18... Qa5 {[%clk 0:18:21]} 19. Bd2 {[%clk
0:04:49]} 19... b4 {[%clk 0:07:24]} 20. Nd5 {[%clk 0:03:29]} 20... Bxd5 {[%clk
0:04:57]} 21. Bxb4 {[%clk 0:02:56]} 21... Ba2 {[%clk 0:04:34]} 22. Rde1 {[%clk
0:00:33]} 22... Nd3+ {[%clk 0:04:29]} 23. Kd2 {[%clk 0:00:33]} 23... Nxb4 {[%clk
0:04:41]} 24. axb4 {[%clk 0:00:48]} 24... Qxb4+ {[%clk 0:05:10]} 25. Kc1 {[%clk
0:00:59]} 25... Bxg5+ {[%clk 0:05:29]} 26. Kd1 {[%clk 0:01:11]} 26... Qd4+
{[%clk 0:05:43]} 0-1

[Variant "Standard"]
[Site "Europe Echecs"]